bitfinex/quotes_ETHUSD_20250903
["timestamp","ask_amount","ask_price","bid_price","bid_amount"]
[1756941845770,0.002,4469.7,4469.0,1.834]
[1756941845771,0.2889,4469.4,4469.0,1.834]
[1756941845962,3.18355062,4469.6,4469.0,1.834]
[1756941845963,0.00558496,4469.3,4469.0,1.834]
[1756941846149,2.35498963,4469.5,4469.0,1.834]
[1756941846352,0.11758496,4469.5,4469.0,1.834]
[1756941846860,2.35498751,4469.5,4469.0,1.834]
[1756941847064,2.81578751,4469.5,4469.0,1.834]
[1756941847768,2.35498751,4469.5,4469.0,1.834]
[1756941847938,2.69827532,4469.4,4469.0,1.834]
[1756941848139,0.2889,4469.1,4469.0,0.001]
[1756941848466,2.64407194,4469.1,4469.0,0.001]
[1756941848870,3.59027194,4469.1,4469.0,0.001]
[1756941849952,3.67997242,4469.1,4469.0,0.001]
[1756941851672,0.49060048,4469.1,4469.0,0.001]
[1756941852877,0.20170048,4469.1,4469.0,0.309]
[1756941853072,0.20170048,4469.1,4469.0,0.7865]
[1756941853373,0.112,4469.3,4469.0,0.7865]
[1756941853755,0.002,4469.1,4469.0,0.7865]
[1756941854075,2.24517194,4469.1,4469.0,0.001]
[1756941854373,2.98928698,4469.1,4469.0,0.001]
[1756941855662,2.52848698,4469.1,4469.0,0.001]
[1756941855870,0.002,4469.1,4469.0,0.001]
[1756941856065,0.09170108,4469.1,4469.0,0.309]
[1756941856272,0.09170108,4469.1,4469.0,1.2465]
[1756941856469,0.09170108,4469.1,4469.0,1.59762241]
[1756941856652,0.09170108,4469.1,4469.0,3.48413705]
[1756941856980,0.09170108,4469.1,4469.0,1.2465]
[1756941857567,0.002,4469.1,4469.0,0.7865]
[1756941857879,0.002,4469.1,4469.0,1.2465]
[1756941858252,0.002,4469.1,4469.0,0.7865]
[1756941859495,0.002,4469.1,4469.0,4.5295]
[1756941862194,0.002,4469.1,4469.0,4.052]
[1756941863791,0.002,4469.1,4469.0,3.744]
[1756941865099,0.6746676,4469.1,4469.0,3.744]
[1756941868501,1.4243676,4469.1,4469.0,0.001]
[1756941868707,1.4243676,4469.1,4469.0,3.743]
[1756941869209,1.9097676,4469.1,4469.0,3.743]
[1756941869413,4.14735458,4469.1,4469.0,0.001]
[1756941869776,0.6746676,4469.1,4469.0,0.001]
[1756941869981,0.6746676,4469.1,4469.0,0.312]
[1756941871719,0.6746676,4469.1,4469.0,0.7989]
[1756941872093,0.6746676,4469.1,4469.0,0.312]
[1756941872294,0.6746676,4469.1,4469.0,0.001]
[1756941872482,0.9743676,4469.1,4469.0,0.001]
[1756941872821,1.8767676,4469.1,4469.0,3.743]
[1756941873019,4.11435458,4469.1,4469.0,0.001]
[1756941873183,1.8767676,4469.1,4469.0,0.001]
[1756941874221,0.9743676,4469.1,4469.0,0.001]
[1756941875716,1.8767676,4469.1,4469.0,0.001]
[1756941875926,1.88235256,4469.1,4469.0,0.001]
[1756941876223,1.40965256,4469.1,4469.0,0.001]
[1756941876431,1.88235256,4469.1,4469.0,0.001]
[1756941876807,4.11993954,4469.1,4469.0,0.001]
[1756941877821,0.9743676,4469.1,4469.0,0.001]
[1756941878014,1.4040676,4469.1,4469.0,0.001]
[1756941879136,1.40965256,4469.1,4469.0,0.001]
[1756941879739,1.4040676,4469.1,4469.0,0.001]
[1756941880235,1.40965256,4469.1,4469.0,0.001]
[1756941880951,0.97995256,4469.1,4469.0,0.001]
[1756941881132,0.9743676,4469.1,4469.0,0.001]
[1756941881938,3.21753954,4469.1,4469.0,0.001]
[1756941882240,0.97995256,4469.1,4469.0,0.001]
[1756941882613,0.9743676,4469.1,4469.0,0.001]
[1756941883113,4.11435458,4469.1,4469.0,0.001]
[1756941883313,1.8767676,4469.1,4469.0,0.001]
[1756941883550,1.4040676,4469.1,4469.0,0.001]
[1756941884850,0.9743676,4469.1,4469.0,0.001]
[1756941885248,3.64165458,4469.1,4469.0,0.001]
[1756941885551,4.11435458,4469.1,4469.0,0.001]
[1756941890357,11.13435458,4469.1,4469.0,0.001]
[1756941890818,10.23195458,4469.1,4469.0,0.001]
[1756941891536,10.66165458,4469.1,4469.0,0.001]
[1756941892131,7.6946676,4469.1,4469.0,0.001]
[1756941892422,7.6946676,4469.1,4469.0,0.7989]
[1756941892931,7.6946676,4469.1,4469.0,1.2621]
[1756941893121,7.022,4469.1,4469.0,1.2621]
[1756941893652,7.022,4469.1,4469.0,3.49973705]
[1756941894129,7.022,4469.1,4469.0,1.2621]
[1756941894721,7.022,4469.1,4469.0,0.7989]
[1756941896151,7.022,4469.1,4469.0,0.312]
[1756941896523,7.022,4469.1,4469.0,0.001]
[1756941896923,7.022,4469.1,4469.0,0.312]
[1756941900654,8.2517,4469.1,4469.0,0.001]
[1756941900835,7.3281,4469.1,4469.0,0.001]
[1756941902449,8.2517,4469.1,4469.0,0.001]
[1756941903258,7.3281,4469.1,4469.0,0.001]
[1756941903470,0.002,4469.1,4469.0,3.49123705]
[1756941903627,0.002,4469.1,4469.0,3.95083705]
[1756941905328,0.002,4469.1,4469.0,1.2536]
[1756941905530,0.002,4469.1,4469.0,0.001]
[1756941905725,0.002,4469.1,4469.0,3.742]
[1756941908985,0.002,4469.1,4469.0,4.0414]
[1756941909137,0.002,4469.1,4469.0,6.27903705]
[1756941910171,0.002,4469.1,4469.0,7.21173705]
[1756941910386,0.002,4469.1,4469.0,8.33138312]
[1756941912179,0.002,4469.1,4469.0,3.35828312]
[1756941912378,0.002,4469.1,4469.0,7.09828312]
[1756941912875,0.002,4469.1,4469.0,7.39768312]
[1756941913080,0.002,4469.1,4469.0,7.87078312]
[1756941913283,0.002,4469.1,4469.0,4.13078312]
[1756941913469,0.002,4469.1,4469.0,7.87078312]
[1756941913667,0.002,4469.1,4469.0,7.98278312]
[1756941913879,0.002,4469.1,4469.0,7.50968312]
[1756941919006,0.002,4469.1,4469.0,3.76968312]
[1756941919168,0.002,4469.1,4469.0,7.50968312]
[1756941919368,0.002,4469.1,4469.0,7.98278312]
[1756941919895,0.002,4469.1,4469.0,8.44238312]
[1756941922510,0.002,4469.1,4469.0,7.98278312]
[1756941923293,0.002,4469.1,4469.0,7.50968312]
[1756941923602,0.002,4469.1,4469.0,7.20928312]
[1756941923819,0.3081,4469.1,4469.0,0.113]
[1756941924031,0.7575,4469.1,4469.0,3.852]
[1756941924524,0.7575,4469.1,4469.0,6.08963705]
[1756941924692,0.3081,4469.1,4469.0,6.08963705]
[1756941924892,0.002,4469.1,4469.0,6.08963705]
[1756941926328,0.002,4469.1,4469.0,6.38903705]
[1756941927290,0.002,4469.1,4469.0,6.08963705]
[1756941929549,0.002,4469.1,4469.0,6.38903705]
[1756941930412,0.002,4469.1,4469.0,7.63173178]
[1756941931654,0.002,4469.1,4469.0,8.08643178]
[1756941932956,0.002,4469.1,4469.0,7.63173178]
[1756941935262,0.002,4469.1,4469.0,8.08643178]
[1756941936443,0.002,4469.1,4469.0,7.63173178]
[1756941936646,0.002,4469.1,4469.0,7.13563178]
[1756941937228,0.002,4469.1,4469.0,6.83623178]
[1756941939174,0.3079,4469.1,4469.0,4.59859473]
[1756941939380,1.2276,4469.1,4469.0,4.59859473]
[1756941939979,1.2276,4469.1,4469.0,6.83623178]
[1756941940158,0.7556,4469.1,4469.0,6.83623178]
[1756941940359,0.002,4469.1,4469.0,7.14753178]
[1756941941777,0.002,4469.1,4469.0,7.14653178]
[1756941941962,0.3079,4469.1,4469.0,4.59759473]
[1756941942146,0.3079,4469.1,4469.0,3.851]
[1756941942853,0.3079,4469.1,4469.0,6.08863705]
[1756941943346,0.7556,4469.1,4469.0,6.08863705]
[1756941945578,0.7556,4469.1,4469.0,6.89603705]
[1756941945579,0.002,4469.1,4469.0,6.89603705]
[1756941947280,0.002,4469.1,4469.0,11.78044747]
[1756941947592,0.002,4469.1,4469.0,13.35696593]
[1756941953788,0.002,4469.1,4469.0,12.90226593]
[1756941955618,0.002,4469.1,4469.0,8.47255551]
[1756941956520,0.002,4469.1,4469.0,7.97645551]
[1756941957028,1.2276,4469.1,4469.0,3.92715551]
[1756941957318,1.2276,4469.1,4469.0,6.08763705]
[1756941959122,1.2276,4469.1,4469.0,2.35063705]
[1756941959295,1.2276,4469.1,4469.0,6.08763705]
[1756941960024,1.2276,4469.1,4469.0,7.80763705]
[1756941961730,0.002,4469.1,4469.0,8.11923705]
[1756941961933,0.002,4469.1,4469.0,7.80763705]
[1756941964616,0.2949,4469.1,4469.0,7.80763705]
[1756941965437,0.7269,4469.1,4469.0,7.80763705]
[1756941965941,0.2949,4469.1,4469.0,7.80763705]
[1756941966655,0.7269,4469.1,4469.0,5.57]
[1756941966858,1.2194,4469.1,4469.0,5.57]
[1756941967526,1.2194,4469.1,4469.0,1.833]
[1756941967726,1.2194,4469.1,4469.0,5.57]
[1756941968155,1.2194,4469.1,4469.0,7.80763705]
[1756941970074,0.002,4469.1,4469.0,9.12647256]
[1756941970243,0.002,4469.1,4469.0,9.59467256]
[1756941974458,0.002,4469.1,4469.0,9.12647256]
[1756941974664,0.2949,4469.1,4469.0,8.81487256]
[1756941974968,0.002,4469.1,4469.0,7.80763705]
[1756941975335,0.2949,4469.1,4469.0,7.80763705]
[1756941975772,0.002,4469.1,4469.0,7.80763705]
[1756941978759,0.002,4469.1,4469.0,8.11923705]
[1756941979056,0.002,4469.1,4469.0,8.58743705]
[1756941979252,0.002,4469.1,4469.0,10.30008256]
[1756941980675,0.002,4469.1,4469.0,9.83188256]
[1756941980881,0.002,4469.1,4469.0,8.11923705]
[1756941981080,0.2949,4469.1,4469.0,7.80763705]
[1756941981654,0.002,4469.1,4469.0,7.80763705]
[1756941993312,0.002,4469.1,4469.0,8.09373705]
[1756941994594,0.67459522,4469.1,4469.0,8.09373705]
[1756941995101,0.002,4469.1,4469.0,8.09373705]
[1756941995299,0.002,4469.1,4469.0,9.70958256]
[1756941995669,0.97719522,4469.1,4469.0,9.42348256]
[1756941995869,1.89409522,4469.1,4469.0,7.80763705]
[1756941996070,1.89409522,4469.1,4469.0,5.568]
[1756941997872,1.89409522,4469.1,4469.0,7.80563705]
[1756941999404,1.89409522,4469.1,4469.0,5.568]
[1756942000186,1.89409522,4469.1,4469.0,7.80563705]
[1756942001610,1.41889522,4469.1,4469.0,7.80563705]
[1756942007017,0.97719522,4469.1,4469.0,7.80563705]
[1756942007310,0.67459522,4469.1,4469.0,8.09173705]
[1756942007521,0.67459522,4469.1,4469.0,9.62158432]
[1756942007924,0.67459522,4469.1,4469.0,10.06688432]
[1756942008483,0.67459522,4469.1,4469.0,9.62158432]
[1756942008699,0.002,4469.1,4469.0,10.06688432]
[1756942009901,0.002,4469.1,4469.0,9.62158432]
[1756942012033,0.002,4469.1,4469.0,10.06688432]
[1756942012322,0.002,4469.1,4469.0,9.62158432]
[1756942013707,0.3046,4469.1,4469.0,8.84128432]
[1756942014024,0.7463,4469.1,4469.0,7.80563705]
[1756942015832,0.3046,4469.1,4469.0,7.80563705]
[1756942016035,0.7463,4469.1,4469.0,7.80563705]
[1756942018903,1.2215,4469.1,4469.0,7.80563705]
[1756942019105,0.7463,4469.1,4469.0,7.80563705]
[1756942019609,0.7463,4469.1,4469.0,8.81267147]
[1756942019809,0.3046,4469.1,4469.0,8.81267147]
[1756942020648,0.002,4469.1,4469.0,8.81267147]
[1756942021147,0.3067,4469.1,4469.0,8.81267147]
[1756942021320,0.7736,4469.1,4469.0,8.81267147]
[1756942022338,0.002,4469.1,4469.0,8.81267147]
[1756942023621,0.3067,4469.1,4469.0,8.81267147]
[1756942025339,0.002,4469.1,4469.0,8.81267147]
[1756942026638,0.002,4469.1,4469.0,9.10987147]
[1756942030540,0.002,4469.1,4469.0,8.81267147]
[1756942034051,0.002,4469.1,4469.0,9.10987147]
[1756942042864,0.002,4469.1,4469.0,9.59207147]
[1756942044356,0.002,4469.1,4469.0,9.10987147]
[1756942044564,0.002,4469.1,4469.0,8.10283705]
[1756942044761,0.002,4469.1,4469.0,7.80563705]
[1756942048556,0.3067,4469.1,4469.0,7.80563705]
[1756942049845,0.002,4469.1,4469.0,7.80563705]
[1756942055369,0.002,4469.1,4469.0,8.09743705]
[1756942057376,0.002,4469.1,4469.0,8.56123712]
[1756942063595,0.002,4469.1,4469.0,8.91093712]
[1756942063896,0.002,4469.1,4469.0,10.27323712]
[1756942064098,0.002,4469.6,4469.5,2.23738673]
[1756942064302,0.002,4469.6,4469.5,5.96738673]
[1756942064490,0.002,4469.6,4469.5,8.09637235]
[1756942064695,0.002,4469.6,4469.5,8.64433463]
[1756942067421,0.002,4469.6,4469.5,14.44433463]
[1756942069023,0.3003,4469.6,4469.5,9.96423463]
[1756942069225,0.3003,4469.6,4469.5,13.69323463]
[1756942069424,0.7533,4469.6,4469.5,9.96423463]
[1756942069623,0.7533,4469.6,4469.5,11.96804901]
[1756942070128,0.7533,4469.6,4469.5,6.16804901]
[1756942071931,0.3003,4469.6,4469.5,6.16804901]
[1756942072300,0.3003,4469.6,4469.5,6.07838673]
[1756942074253,0.3003,4469.6,4469.5,6.94000123]
[1756942075270,0.002,4469.6,4469.5,6.94000123]
[1756942075560,0.3003,4469.6,4469.5,6.94000123]
[1756942082654,0.002,4469.6,4469.5,6.94000123]
[1756942082983,0.002,4469.6,4469.5,7.16410123]
[1756942083174,0.002,4469.6,4469.5,6.94000123]
[1756942084357,0.002,4469.6,4469.5,7.24200123]
[1756942085190,0.002,4469.6,4469.5,7.68930123]
[1756942085487,0.002,4469.6,4469.5,7.77896351]
[1756942085657,0.002,4469.6,4469.5,7.33166351]
[1756942085853,0.002,4469.6,4469.5,8.57096351]
[1756942086192,0.002,4470.0,4469.7,6.02928661]
[1756942086373,0.002,4470.0,4469.7,11.13810662]
[1756942086577,0.002,4470.0,4469.7,11.88740662]
[1756942086775,1e-08,4470.0,4469.9,3.02918651]
[1756942086983,1e-08,4470.0,4469.9,8.49955837]
[1756942087177,1e-08,4470.0,4469.9,8.89118651]
[1756942087358,1e-08,4470.0,4469.9,11.3445289]
[1756942088090,1e-08,4470.0,4469.9,11.43417811]
[1756942088268,1e-08,4470.0,4469.9,17.23417811]
[1756942093089,1e-08,4470.0,4469.9,17.45827811]
[1756942093593,1e-08,4470.0,4469.9,16.78687811]
[1756942093794,0.76720001,4470.0,4469.9,15.69187811]
[1756942093960,0.76720001,4470.0,4469.9,9.95883572]
[1756942094296,0.76720001,4470.0,4469.9,13.68583572]
[1756942094484,0.30950001,4470.0,4469.9,13.68583572]
[1756942095394,0.76720001,4470.0,4469.9,13.68583572]
[1756942095992,0.76720001,4470.0,4469.9,7.88583572]
[1756942099473,0.76720001,4470.0,4469.9,4.15883572]
[1756942099775,0.76720001,4470.0,4469.9,4.06918651]
[1756942100106,0.76720001,4470.0,4469.9,7.79618651]
[1756942105245,0.76720001,4470.0,4469.9,1.832]
[1756942105549,0.76720001,4470.0,4469.9,3.726]
[1756942105730,0.76720001,4470.0,4469.8,0.001]
[1756942106035,1.43981935,4470.0,4469.8,3.727]
[1756942106221,0.5697,4469.9,4469.8,3.727]
[1756942106395,0.8792,4469.9,4469.8,3.727]
[1756942109852,7.8992,4469.9,4469.8,3.727]
[1756942110744,7.8992,4469.9,4469.8,0.001]
[1756942111126,13.41599352,4469.9,4469.8,0.001]
[1756942114554,13.13638651,4469.9,4469.8,0.001]
[1756942114957,16.86338651,4469.9,4469.8,0.001]
[1756942116962,16.86338651,4469.9,4469.4,0.001]
[1756942116963,2.23738673,4469.5,4469.4,0.001]
[1756942117257,16.28137978,4469.5,4469.4,0.001]
[1756942117440,17.81839482,4469.5,4469.4,0.001]
[1756942117645,18.01973857,4469.5,4469.4,0.001]
[1756942122144,17.74212462,4469.5,4469.4,0.001]
[1756942126982,17.85412462,4469.5,4469.4,0.001]
[1756942129073,18.13173857,4469.5,4469.4,0.001]
[1756942129672,18.61523857,4469.5,4469.4,0.001]
[1756942133492,6.02943679,4469.4,4469.3,0.001]
[1756942133693,6.02943679,4469.4,4469.0,0.001]
[1756942133694,2.23753691,4469.2,4469.0,0.001]
[1756942133909,9.66363582,4469.2,4469.0,0.001]
[1756942134118,10.58825086,4469.2,4469.0,0.001]
[1756942139504,17.60825086,4469.2,4469.0,0.001]
[1756942140930,16.67805086,4469.2,4469.0,0.001]
[1756942141230,17.60155086,4469.2,4469.0,0.001]
[1756942141607,22.03496544,4469.2,4469.0,0.001]
[1756942142632,9.964311,4469.1,4469.0,0.001]
[1756942142831,10.436811,4469.1,4469.0,0.001]
[1756942143031,11.194511,4469.1,4469.0,0.001]
[1756942143254,11.28422918,4469.1,4469.0,0.001]
[1756942144620,2.23763705,4469.0,4468.9,0.001]
[1756942144957,9.26353145,4469.0,4468.9,0.001]
[1756942145137,9.25794649,4469.0,4468.9,0.001]
[1756942145480,16.36766508,4469.0,4468.9,0.001]
[1756942146121,16.36766508,4469.0,4468.9,0.7494]
[1756942146525,16.36766508,4469.0,4468.9,0.2903]
[1756942148879,16.36766508,4469.0,4468.9,0.001]
[1756942152779,21.10777966,4469.0,4468.9,0.001]
[1756942152999,16.67436508,4469.0,4468.9,0.001]
[1756942153164,13.39836508,4469.0,4468.9,0.001]
[1756942153368,16.36766508,4469.0,4468.9,0.2903]
[1756942154574,16.36766508,4469.0,4468.9,0.001]
[1756942155723,16.67436508,4469.0,4468.9,0.001]
[1756942156018,17.12536508,4469.0,4468.9,0.001]
[1756942156577,21.55877966,4469.0,4468.9,0.001]
[1756942157027,21.10777966,4469.0,4468.9,0.001]
[1756942161819,22.03127966,4469.0,4468.9,0.001]
[1756942162012,21.55877966,4469.0,4468.9,0.001]
[1756942162525,21.10777966,4469.0,4468.9,0.001]
[1756942166125,16.67436508,4469.0,4468.9,0.001]
[1756942166625,12.94736508,4469.0,4468.9,0.001]
[1756942166814,16.36766508,4469.0,4468.9,0.2903]
[1756942167007,16.36766508,4469.0,4468.9,0.7494]
[1756942167709,16.36766508,4469.0,4468.9,0.2903]
[1756942168430,21.10777966,4469.0,4468.9,0.001]
[1756942168737,16.36766508,4469.0,4468.9,0.2903]
[1756942169033,16.36766508,4469.0,4468.9,0.001]
[1756942170539,16.36766508,4469.0,4468.9,0.3031]
[1756942171734,16.36766508,4469.0,4468.9,1.2509]
[1756942171735,11.54313317,4469.0,4468.9,1.2509]
[1756942172146,0.08971859,4469.0,4468.9,1.2509]
[1756942172455,0.002,4469.2,4468.9,1.3629]
[1756942172606,0.002,4469.2,4469.0,3.18543705]
[1756942172806,0.002,4469.2,4469.0,1.3104537]
[1756942173129,0.002,4469.2,4469.1,1.2499]
[1756942174722,4.43541458,4469.2,4469.1,1.2499]
[1756942181786,4.43541458,4469.2,4468.9,0.113]
[1756942181972,0.00558496,4469.1,4468.9,0.001]
[1756942182860,0.00558496,4469.1,4469.0,0.3021]
[1756942183290,4.43541458,4469.2,4469.0,0.7764]
[1756942186413,6.67296455,4469.2,4469.0,0.7764]
[1756942186715,4.43541458,4469.2,4469.0,0.3021]
[1756942189696,4.43541458,4469.2,4469.0,0.7764]
[1756942190293,4.43541458,4469.2,4469.0,0.3021]
[1756942190493,0.002,4469.2,4469.1,0.9478]
[1756942190687,0.002,4469.2,4469.1,1.75009]
[1756942190874,0.002,4469.2,4469.1,1.38859]
[1756942191304,0.002,4469.2,4469.1,1.86209]
[1756942193206,0.002,4469.2,4469.1,3.62617698]
[1756942193406,0.002,4469.2,4469.1,5.81967698]
[1756942198308,0.002,4469.2,4469.1,6.61167698]
[1756942200121,0.002,4469.2,4469.1,12.41167698]
[1756942200298,0.002,4469.2,4469.1,19.84509156]
[1756942200801,0.002,4469.2,4469.1,20.06929156]
[1756942201590,0.002,4469.2,4469.1,15.63587698]
[1756942203592,0.002,4469.2,4469.1,19.35987698]
[1756942205522,0.002,4469.2,4469.1,19.13567698]
[1756942207220,0.002,4469.2,4469.1,18.18687698]
[1756942207525,0.002,4469.2,4469.1,18.65417698]
[1756942207699,0.002,4469.2,4469.1,19.08267698]
[1756942208023,0.002,4469.2,4469.1,18.65417698]
[1756942208527,0.002,4469.2,4469.1,15.02084287]
[1756942208696,0.002,4469.2,4469.1,18.74384287]
[1756942209409,0.002,4469.2,4469.1,18.27654287]
[1756942210542,0.002,4469.2,4469.1,18.74384287]
[1756942211040,0.002,4469.2,4469.1,19.17234287]
[1756942213129,0.002,4469.2,4469.1,18.74384287]
[1756942213434,0.002,4469.2,4469.1,18.27654287]
[1756942214930,0.002,4469.2,4469.1,17.48454287]
[1756942216134,0.002,4469.2,4469.1,18.27654287]
[1756942217334,0.002,4469.2,4469.1,18.27554287]
[1756942218733,0.002,4469.2,4469.1,13.76154287]
[1756942218936,0.002,4469.2,4469.1,19.17134287]
[1756942220328,0.002,4469.7,4469.1,19.17134287]
[1756942220329,0.002,4469.7,4469.6,6.02933667]
[1756942220504,0.002,4469.7,4469.6,10.69001106]
[1756942220703,0.002,4469.7,4469.6,11.47081106]
[1756942220934,0.002,4469.7,4469.6,17.78896047]
[1756942221436,0.002,4469.7,4469.6,18.01316047]
[1756942222537,1e-08,4469.8,4469.7,3.25348661]
[1756942222738,1e-08,4469.8,4469.7,6.19670418]
[1756942223040,1e-08,4469.8,4469.7,6.48783132]
[1756942223202,1e-08,4469.8,4469.7,5.83513132]
[1756942223535,1e-08,4469.8,4469.7,5.36783132]
[1756942224820,1e-08,4469.8,4469.7,11.16783132]
[1756942225422,1e-08,4469.8,4469.7,14.66597813]
[1756942225622,1e-08,4469.8,4469.7,14.97947813]
[1756942226828,1e-08,4469.8,4469.7,15.44677813]
[1756942227022,1e-08,4469.8,4469.7,15.87527813]
[1756942228129,1e-08,4469.8,4469.7,15.44677813]
[1756942229235,1e-08,4469.8,4469.7,15.87527813]
[1756942229439,1e-08,4469.8,4469.7,15.44677813]
[1756942230937,1e-08,4469.8,4469.7,15.88957813]
[1756942231332,1e-08,4469.8,4469.7,16.11377813]
[1756942231732,0.002,4470.5,4470.2,2.23703637]
[1756942231733,1e-08,4470.3,4470.2,2.23703637]
[1756942231923,1e-08,4470.3,4470.2,16.89434519]
[1756942232273,1e-08,4470.3,4470.2,18.33824519]
[1756942232550,0.002,4470.7,4470.6,2.46103621]
[1756942232852,0.002,4470.7,4470.6,9.18203621]
[1756942233164,0.002,4470.7,4470.6,17.18397065]
[1756942233365,0.002,4470.7,4470.6,17.27359917]
[1756942234444,0.002,4470.7,4470.6,16.79699917]
[1756942235851,0.002,4470.7,4470.6,16.79699917]
[1756942238264,0.002,4470.7,4470.6,17.27359917]
[1756942238771,0.002,4470.7,4470.6,18.06559917]
[1756942238962,0.002,4470.7,4470.6,18.50839917]
[1756942239275,0.002,4470.7,4470.6,18.06559917]
[1756942239571,0.002,4470.7,4470.6,13.56769917]
[1756942239751,0.002,4470.7,4470.6,18.06559917]
[1756942239945,0.002,4470.7,4470.6,17.58899917]
[1756942240364,1.2677,4470.7,4470.6,16.27249917]
[1756942240675,1.2677,4470.7,4470.6,14.86983621]
[1756942242069,1.2677,4470.7,4470.6,3.833]
[1756942242269,1.2677,4470.7,4470.2,1.72]
[1756942242566,0.956,4470.6,4470.4,0.112]
[1756942242977,0.956,4470.6,4470.5,3.72]
[1756942243273,1.2657,4470.6,4470.2,1.72]
[1756942243445,5.31230882,4470.3,4470.2,1.72]
[1756942243655,1.2657,4470.3,4470.2,5.44]
[1756942250076,1.2657,4470.3,4470.2,7.67703637]
[1756942251881,1.2657,4470.3,4470.2,5.44]
[1756942253272,1.2657,4470.3,4470.2,1.72]
[1756942253473,1.2657,4470.3,4470.2,5.441]
[1756942254079,1.2657,4470.3,4470.2,1.72]
[1756942254282,0.7983,4470.3,4470.2,5.441]
[1756942254452,0.3097,4470.3,4470.2,7.67803637]
[1756942254651,0.7771,4470.3,4470.2,7.67803637]
[1756942255251,1.2657,4470.3,4470.2,7.67803637]
[1756942255448,0.3097,4470.3,4470.2,7.67803637]
[1756942256061,1.2657,4470.3,4470.2,7.67803637]
[1756942256579,1.2657,4470.3,4470.2,5.441]
[1756942257651,1.2657,4470.3,4470.2,7.67803637]
[1756942263487,5.69426024,4470.3,4470.2,5.441]
[1756942263985,5.69426024,4470.3,4470.2,1.72]
[1756942264151,8.23931224,4470.3,4470.2,5.441]
[1756942264347,8.91189992,4470.3,4470.2,5.441]
[1756942264585,9.02389992,4470.3,4470.2,5.441]
[1756942264787,8.71583425,4470.3,4470.2,5.441]
[1756942265486,6.47884792,4470.3,4470.2,5.441]
[1756942266263,8.71583425,4470.3,4470.2,5.441]
[1756942269988,15.73583425,4470.3,4470.2,5.441]
[1756942272001,2.23703637,4470.2,4470.1,0.001]
[1756942272202,5.96362133,4470.2,4470.1,0.001]
[1756942272494,7.52500204,4470.2,4470.1,0.001]
[1756942277304,14.54500204,4470.2,4470.1,0.001]
[1756942279425,10.34930204,4470.2,4470.1,0.001]
[1756942279581,11.56056024,4470.2,4470.1,0.001]
[1756942279786,7.132,4470.2,4470.1,0.7796]
[1756942279981,7.132,4470.2,4470.1,1.2329]
[1756942283215,7.132,4470.2,4470.1,0.7796]
[1756942286917,7.02,4470.2,4470.1,0.7796]
[1756942287417,7.02,4470.2,4470.1,0.2878]
[1756942290898,11.44856024,4470.3,4470.1,0.2878]
[1756942291312,11.44856024,4470.3,4470.1,0.001]
[1756942291624,0.2873,4470.2,4470.1,0.001]
[1756942291815,0.29288496,4470.2,4470.1,0.001]
[1756942291995,0.2873,4470.2,4470.1,0.001]
[1756942292706,7.4739,4470.3,4470.1,0.001]
[1756942293326,0.5933,4470.5,4470.1,0.001]
[1756942293631,4.42856024,4470.2,4470.1,0.001]
[1756942294127,4.42856024,4470.2,4470.1,0.3037]
[1756942294326,4.42856024,4470.5,4470.1,3.00077753]
[1756942294498,0.002,4470.6,4470.2,3.1277331]
[1756942294826,0.002,4470.6,4470.3,3.721]
[1756942295034,0.002,4470.6,4470.5,0.3027]
[1756942295598,0.002,4470.6,4470.3,3.721]
[1756942296835,4.42856024,4470.5,4470.3,3.721]
[1756942299323,0.2873,4470.4,4470.1,0.001]
[1756942299495,0.7412,4470.4,4470.2,3.721]
[1756942299698,0.4539,4470.3,4470.1,0.001]
[1756942300028,0.9352,4470.3,4470.2,3.721]
[1756942300233,4.42856024,4470.2,4470.1,0.001]
[1756942300535,4.8880452,4470.2,4470.1,3.722]
[1756942300713,4.88246024,4470.2,4470.1,3.722]
[1756942301049,4.42856024,4470.2,4470.1,3.722]
[1756942301249,4.42856024,4470.2,4470.1,4.0247]
[1756942301394,4.42856024,4470.5,4470.1,4.4847]
[1756942301721,4.42856024,4470.5,4470.2,0.46]
[1756942302050,0.002,4470.6,4470.4,0.3027]
[1756942302203,0.002,4470.6,4470.5,3.721]
[1756942302709,0.002,4470.6,4470.5,4.4837]
[1756942303038,0.002,4470.6,4470.5,3.721]
[1756942303327,0.2893,4470.6,4470.5,3.721]
[1756942303633,1.2245,4470.6,4470.5,3.721]
[1756942304447,3.46133621,4470.6,4470.5,3.721]
[1756942304616,2.23694147,4470.4,4470.1,0.001]
[1756942304829,4.54056024,4470.2,4470.1,0.001]
[1756942305033,4.82786024,4470.2,4470.1,3.722]
[1756942305198,5.28176024,4470.2,4470.1,3.722]
[1756942305396,5.76306024,4470.2,4470.1,3.722]
[1756942305998,5.28176024,4470.2,4470.1,3.722]
[1756942306741,5.76306024,4470.2,4470.1,3.722]
[1756942307623,8.00009661,4470.2,4470.1,0.001]
[1756942307798,15.42865685,4470.2,4470.1,0.001]
[1756942308005,19.14965685,4470.2,4470.1,0.001]
[1756942309398,14.72109661,4470.2,4470.1,0.001]
[1756942309798,19.45756297,4470.2,4470.1,0.001]
[1756942313341,26.47756297,4470.2,4470.1,0.001]
[1756942322160,2.23743679,4469.4,4469.3,0.001]
[1756942322357,20.41158199,4469.4,4469.3,0.001]
[1756942322559,22.10522631,4469.4,4469.3,0.001]
[1756942323528,22.99526144,4469.4,4469.3,0.001]
[1756942326671,22.04056144,4469.4,4469.3,0.001]
[1756942327359,22.50716144,4469.4,4469.3,0.001]